[Event "TUR-ch Youth U17 2019"]
[Site "Belek"]
[Date "2019.01.24"]
[Round "7"]
[White "Kocyigit, Buse Naz"]
[Black "Akti, Ezgi"]
[Result "1-0"]
[ECO "C95"]
[WhiteElo "2043"]
[BlackElo "1713"]
[Annotator "NA"]
[PlyCount "129"]
[EventDate "2019.01.20"]
[EventType "swiss"]
[EventCountry "TUR"]
[SourceTitle "playchess.com"]
[Source "ChessBase"]
[SourceQuality "1"]
[TimeControl "5400+30"]

1. e4 e5 {[%emt 0:00:30]} 2. Nf3 {[%emt 0:00:00]} Nc6 {[%emt 0:00:30]} 3. Bb5 {[%emt 0:00:00]} a6 {[%emt 0:00:30]} 4. Ba4 {[%emt 0:00:30]} Nf6 {[%emt 0:00:30]} 5. O-O {[%emt 0:00:00]} d6 {[%emt 0:17:30]} 6. Re1 {[%emt 0:08:30]} b5 {[%emt 0:04:30]} 7. Bb3 {[%emt 0:00:30]} Be7 {[%emt 0:01:30]} 8. c3 {[%emt 0:00:00]} O-O {[%emt 1:08:30]} 9. h3 {[%emt 0:00:30]} Nb8 {[%emt 0:00:00]} 10. d4 {[%emt 0:00:00]} Nbd7 {[%emt 0:00:00]} 11. Nbd2 {[%emt 0:00:00]} Bb7 {[%emt 0:00:00]} 12. Bc2 {[%emt 0:00:00]} Re8 {[%emt 0:00:00]} 13. a4 {[%emt 0:00:00] LiveBook: 578 Games} c5 {[%emt 0:00:00]} 14. d5 {[%emt 0:00:00]} Bf8 {[%emt 0:00:00] C95: Closed Ruy Lopez: Breyer Variation with 10 d4} (14... c4 15. b3 cxb3 16. Nxb3 Qc7 17. Be3 Nb6 18. Nbd2 Nfd7 19. axb5 {½-½ (19) Areshchenko,A (2678)-Efimenko,Z (2651) Rivne 2016}) 15. b3 {[%emt 0:00:00]} g6 {[%emt 0:00:00]} 16. Bd3 {[%emt 0:00:00]} b4 {[%emt 1:08:00]} 17. c4 $146 {[%emt 0:40:30]} ({Predecessor:} 17. cxb4 cxb4 18. a5 Nc5 19. Bc2 Bc8 20. Nc4 Rb8 21. Bd2 Qc7 {½-½ (29) Georgiev,K (2440)-Kolev,A Pernik 1983}) 17... Nh5 {[%emt 0:04:30]} 18. g3 {[%emt 0:01:30]} Bc8 $11 {[%emt 0:02:30]} 19. Nf1 {[%emt 0:16:30]} Bg7 {[%emt 0:04:42]} 20. Ra2 {[%emt 0:02:30]} Nf8 {[%emt 0:02:06]} 21. Kg2 {[%emt 0:05:30]} Qd7 {[%emt 0:04:33]} 22. Ng1 {[%emt 0:00:00]} Ra7 {[%emt 0:04:09]} 23. Nh2 {[%emt 0:01:00]} Qd8 {[%emt 0:05:27]} 24. f4 {[%emt 0:19:50]} exf4 {[%emt 0:00:15]} 25. g4 {[%emt 0:01:40]} Nf6 {[%emt 0:00:40]} 26. Bxf4 {[%emt 0:00:13]} Rae7 {[%emt 0:00:32]} 27. Rae2 {[%emt 0:01:41]} Qc7 {[%emt 0:00:27]} 28. Ngf3 {[%emt 0:01:56]} N6d7 {[%emt 0:01:15]} 29. Bg5 {[%emt 0:02:42]} f6 {[%emt 0:00:10]} 30. Bh4 {[%emt 0:00:23]} g5 {[%emt 0:00:33]} 31. Bg3 {[%emt 0:00:57]} Ng6 {[%emt 0:00:33]} 32. e5 {[%emt 0:08:07]} Ndxe5 {[%emt 0:00:41]} 33. Bxe5 {[%emt 0:00:02]} Nxe5 {[%emt 0:01:18]} 34. Nxe5 {[%emt 0:00:15]} Rxe5 {[%emt 0:03:20]} 35. Rxe5 {[%emt 0:00:30]} Rxe5 {[%emt 0:00:30]} 36. Rxe5 {[%emt 0:00:30]} fxe5 {[%emt 0:00:30]} 37. Qf3 {[%emt 0:00:30]} Qe7 {[%emt 0:00:30]} 38. Qe4 {[%emt 0:00:30]} Bf6 {[%emt 0:00:30]} 39. Nf1 {[%emt 0:01:33]} Bd7 {[%emt 0:01:10]} 40. Ng3 {[%emt 0:00:38]} Be8 {[%emt 0:00:30]} 41. Qf5 {[%emt 0:00:30]} Bd7 {[%emt 0:00:30]} 42. Qf3 {[%emt 0:00:30]} Be8 {[%emt 0:00:30]} 43. Ne4 {[%emt 0:00:36]} Kg7 {[%emt 0:00:30]} 44. Ng3 {[%emt 0:00:23]} Bg6 {[%emt 0:00:27]} 45. Bf5 {[%emt 0:00:30]} a5 {[%emt 0:00:30]} 46. Ne4 {[%emt 0:00:30]} Qd8 {[%emt 0:00:18]} 47. Ng3 {[%emt 0:00:55]} Qe7 {[%emt 0:00:30]} 48. Qe4 {[%emt 0:00:30]} Qe8 {[%emt 0:00:30]} 49. Qf3 {[%emt 0:00:05]} Qd8 {[%emt 0:01:01]} 50. Ne4 {[%emt 0:00:30]} Qe7 {[%emt 0:00:30]} 51. Ng3 {[%emt 0:00:30]} Qd8 {[%emt 0:00:30]} 52. Be4 {[%emt 0:00:25]} Qd7 {[%emt 0:00:18]} 53. Nf5+ {[%emt 0:00:35]} Bxf5 {[%emt 0:00:24]} 54. Bxf5 {[%emt 0:00:30]} Qe7 {[%emt 0:00:17]} 55. Qe4 {[%emt 0:00:23]} h6 {[%emt 0:00:18]} 56. Bg6 {[%emt 0:00:18]} Kf8 {[%emt 0:00:52]} 57. Bh5 {[%emt 0:00:35]} Bh8 {[%emt 0:00:43]} 58. Qg6 {[%emt 0:00:45]} e4 {[%emt 0:00:27]} 59. Qf5+ {[%emt 0:00:55]} Bf6 {[%emt 0:00:16]} 60. Kf2 {[%emt 0:00:05]} e3+ {[%emt 0:00:36]} 61. Ke2 {[%emt 0:00:16]} Kg7 {[%emt 0:00:31]} 62. Qg6+ {[%emt 0:00:43]} Kf8 {[%emt 0:00:01]} 63. Qxh6+ {[%emt 0:00:24]} Bg7 {[%emt 0:00:30]} 64. Qg6 {[%emt 0:00:00]} Qe5 {[%emt 0:00:10]} 65. Qf7# {[%emt 0:00:00]} 1-0

[Event "TUR-ch Youth U17 2019"]
[Site "Belek"]
[Date "2019.01.24"]
[Round "7"]
[White "Kirilmaz, Emre"]
[Black "Yungucu, Arda"]
[Result "1-0"]
[ECO "A45"]
[WhiteElo "2035"]
[BlackElo "1943"]
[Annotator "NA"]
[PlyCount "56"]
[EventDate "2019.01.20"]
[EventType "swiss"]
[EventCountry "TUR"]
[SourceTitle "playchess.com"]
[Source "ChessBase"]
[SourceQuality "1"]
[TimeControl "5400+30"]

1. d4 Nf6 2. c3 g6 3. Bg5 Bg7 4. Nd2 O-O 5. e4 c5 6. dxc5 Qc7 7. Be3 Na6 8. b4 b6 9. Qa4 bxc5 10. Bxa6 Bxa6 11. Qxa6 cxb4 12. cxb4 Nxe4 13. Rd1 Nc3 14. Rc1 Qb8 15. a3 d5 16. Ngf3 Nb5 17. Rc5 {[%emt 0:32:30]} Nc7 {[%emt 1:12:30]} 18. Qa5 {[%emt 0:04:30]} Ne6 $18 {[%emt 0:01:30]} 19. Rxd5 {[%emt 0:00:00]} Nf4 {[%emt 0:00:30]} 20. Bxf4 {[%emt 0:01:00]} Qxf4 {[%emt 0:00:00]} 21. O-O {[%emt 0:00:00]} e6 {[%emt 0:01:00]} 22. Rd7 {[%emt 0:00:00]} e5 {[%emt 0:00:00]} 23. Qd5 {[%emt 0:01:30]} a5 {[%emt 0:02:00]} 24. b5 {[%emt 0:00:30]} Rab8 {[%emt 0:00:30]} 25. Rb1 {[%emt 0:00:30]} Qa4 {[%emt 0:01:30]} 26. Nxe5 {[%emt 0:03:30]} Bxe5 {[%emt 0:04:24]} 27. Qxe5 {[%emt 0:00:30]} Rbe8 {[%emt 0:00:09]} 28. Qd4 {[%emt 0:04:30]} Qxb5 {[%emt 0:00:53]} 1-0

[Event "TUR-ch Youth U17 2019"]
[Site "Belek"]
[Date "2019.01.24"]
[Round "7"]
[White "Guncan, Berke"]
[Black "Ozkurt, Kutay"]
[Result "0-1"]
[ECO "A04"]
[WhiteElo "2016"]
[BlackElo "1586"]
[Annotator "NA"]
[PlyCount "236"]
[EventDate "2019.01.20"]
[EventType "swiss"]
[EventCountry "TUR"]
[SourceTitle "playchess.com"]
[Source "ChessBase"]
[SourceQuality "1"]
[TimeControl "5400+30"]

1. Nf3 c5 {[%emt 0:00:30]} 2. g3 {[%emt 0:00:30]} Nc6 {[%emt 0:00:30]} 3. Bg2 {[%emt 0:00:30]} g6 {[%emt 0:00:00]} 4. O-O {[%emt 0:00:30]} Bg7 {[%emt 0:00:30]} 5. d3 {[%emt 0:03:30]} d6 {[%emt 0:01:00]} 6. e4 {[%emt 0:05:30]} e5 {[%emt 0:00:30]} 7. c3 {[%emt 0:15:30]} Nge7 {[%emt 0:00:30]} 8. Be3 {[%emt 0:01:30]} O-O {[%emt 0:02:30]} 9. Na3 {[%emt 0:01:30]} Bg4 {[%emt 0:07:30]} 10. h3 {[%emt 0:05:30]} Bxf3 11. Bxf3 Kh8 $146 {A04: Unusual lines after 1 Nf3 and King's Indian Attack} ({Predecessor:} 11... Qd7 12. Bg2 b6 13. Nc2 d5 14. exd5 Nxd5 15. Qf3 Rad8 16. Rad1 {½-½ (16) Schwarz,M (2390)-Danner,G (2440) Budapest 1994}) 12. Bg2 f5 13. f4 Rb8 14. Nc2 Qd7 15. Kh2 Rbe8 16. Qd2 {[%emt 1:00:00]} b6 {[%emt 0:33:00]} 17. d4 {[%emt 0:00:30]} cxd4 {[%emt 0:00:30]} 18. cxd4 {[%emt 0:00:30]} exd4 {[%emt 0:01:30]} 19. Nxd4 {[%emt 0:02:30]} fxe4 {[%emt 0:00:30]} 20. Bxe4 {[%emt 0:00:30]} d5 {[%emt 0:00:00]} 21. Bf3 {[%emt 0:07:30]} Nxd4 {[%emt 0:01:00]} 22. Bxd4 {[%emt 0:00:30]} Nf5 {[%emt 0:00:30]} 23. Bf2 {[%emt 0:05:30]} d4 {[%emt 0:02:30]} 24. Rac1 {[%emt 0:04:30]} Qb5 {[%emt 0:00:30]} 25. Rfe1 {[%emt 0:03:05]} Rc8 {[%emt 0:00:30]} 26. Rcd1 {[%emt 0:06:20]} Ne3 {[%emt 0:02:30]} 27. Bxe3 {[%emt 0:00:30]} dxe3 {[%emt 0:00:00]} 28. Rxe3 {[%emt 0:00:11]} Qxb2 {[%emt 0:00:00]} 29. Qxb2 {[%emt 0:01:11]} Bxb2 {[%emt 0:00:30]} 30. Re7 {[%emt 0:00:11]} Rc2+ {[%emt 0:00:30]} 31. Kh1 {[%emt 0:03:02]} Rc1 {[%emt 0:11:30]} 32. Rxa7 {[%emt 0:02:11]} Rxd1+ {[%emt 0:00:30]} 33. Bxd1 {[%emt 0:00:00]} Rd8 {[%emt 0:00:30]} 34. Bb3 {[%emt 0:00:25]} Bd4 {[%emt 0:00:00]} 35. Kg2 {[%emt 0:00:18]} Bc5 {[%emt 0:00:00]} 36. g4 {[%emt 0:02:40]} Rd2+ {[%emt 0:02:30]} 37. Kg3 {[%emt 0:01:21]} Rd3+ {[%emt 0:00:30]} 38. Kg2 {[%emt 0:01:16]} Rd2+ {[%emt 0:00:00]} 39. Kf3 {[%emt 0:02:24]} Rd3+ {[%emt 0:00:00]} 40. Ke4 {[%emt 0:00:00]} Rxh3 {[%emt 0:00:30]} 41. Ra8+ {[%emt 0:00:40]} Kg7 {[%emt 0:00:30]} 42. Rg8+ {[%emt 0:01:15]} Kf6 {[%emt 0:00:00]} 43. g5+ {[%emt 0:00:08]} Ke7 {[%emt 0:00:00]} 44. Kd5 {[%emt 0:00:52]} Rd3+ {[%emt 0:00:30]} 45. Kc6 {[%emt 0:00:08]} Rd6+ {[%emt 0:01:30]} 46. Kc7 {[%emt 0:01:15]} Rd7+ {[%emt 0:00:30]} 47. Kc6 {[%emt 0:00:19]} Rd6+ {[%emt 0:00:00]} 48. Kb5 {[%emt 0:00:31]} Rd7 {[%emt 0:00:00]} 49. a4 {[%emt 0:00:41]} Kd6 {[%emt 0:00:30]} 50. Rf8 {[%emt 0:00:35]} Kc7 {[%emt 0:00:30]} 51. Rf6 {[%emt 0:00:35]} Rd4 {[%emt 0:01:30]} 52. Bc4 {[%emt 0:01:00]} Rd1 {[%emt 0:00:30]} 53. Rf7+ {[%emt 0:00:19]} Rd7 {[%emt 0:00:30]} 54. Rf6 {[%emt 0:00:25]} Rd1 {[%emt 0:00:30]} 55. Rf7+ {[%emt 0:00:30]} Rd7 {[%emt 0:00:00]} 56. Rf6 {[%emt 0:00:21]} Rd1 {[%emt 0:00:00]} 57. Ka6 {[%emt 0:00:07]} Rd8 {[%emt 0:00:30]} 58. Rf7+ {[%emt 0:00:55]} Rd7 {[%emt 0:00:00]} 59. Rf6 {[%emt 0:00:47]} Rd8 {[%emt 0:00:00]} 60. Bb3 {[%emt 0:00:16]} Rd4 {[%emt 0:02:30]} 61. f5 {[%emt 0:00:47]} gxf5 {[%emt 0:04:30]} 62. Rxf5 {[%emt 0:00:32]} Rb4 {[%emt 0:00:30]} 63. Rf7+ {[%emt 0:00:31]} Kd6 {[%emt 0:00:30]} 64. Rf3 {[%emt 0:00:58]} Rg4 {[%emt 0:00:00]} 65. Rf6+ {[%emt 0:00:17]} Kc7 {[%emt 0:00:00]} 66. Rf7+ {[%emt 0:00:39]} Kc6 {[%emt 0:00:30]} 67. Rf5 {[%emt 0:00:00]} Rb4 {[%emt 0:01:30]} 68. Bd1 {[%emt 0:00:13]} Rd4 {[%emt 0:00:30]} 69. Bf3+ {[%emt 0:01:11]} Kc7 {[%emt 0:00:00]} 70. Rf7+ {[%emt 0:00:18]} Rd7 {[%emt 0:00:00]} 71. Rf6 {[%emt 0:00:00]} Rd4 {[%emt 0:00:30]} 72. Rf7+ {[%emt 0:00:51]} Rd7 {[%emt 0:00:30]} 73. Rf6 {[%emt 0:00:30]} Rd4 {[%emt 0:00:00]} 74. a5 {[%emt 0:00:23]} Ra4 {[%emt 0:02:00]} 75. Rf7+ {[%emt 0:00:11]} Kd6 {[%emt 0:00:30]} 76. Rxh7 {[%emt 0:01:07]} Rxa5+ {[%emt 0:00:30]} 77. Kb7 {[%emt 0:00:30]} b5 {[%emt 0:00:00]} 78. Rh2 {[%emt 0:00:45]} Ra7+ {[%emt 0:01:00]} 79. Kb8 {[%emt 0:00:06]} Rg7 {[%emt 0:00:30]} 80. Rg2 {[%emt 0:00:37]} Bd4 {[%emt 0:00:30]} 81. g6 {[%emt 0:00:47]} b4 {[%emt 0:00:30]} 82. Bd1 {[%emt 0:00:30]} Kc6 {[%emt 0:00:30]} 83. Bb3 {[%emt 0:00:00]} Bc3 {[%emt 0:07:30]} 84. Kc8 {[%emt 0:00:36]} Bf6 {[%emt 0:04:30]} 85. Bf7 {[%emt 0:00:30]} Kb5 {[%emt 0:00:30]} 86. Kd7 {[%emt 0:00:30]} b3 {[%emt 0:00:30]} 87. Ke6 {[%emt 0:00:34]} Bc3 {[%emt 0:00:30]} 88. Kf5 {[%emt 0:00:48]} b2 {[%emt 0:01:30]} 89. Rg1 {[%emt 0:00:26]} Kb4 {[%emt 0:00:30]} 90. Rg4+ {[%emt 0:00:58]} Ka3 {[%emt 0:00:30]} 91. Rg1 {[%emt 0:00:00]} Kb4 {[%emt 0:00:30]} 92. Ke4 {[%emt 0:00:00]} Bf6 {[%emt 0:03:30]} 93. Kd3 {[%emt 0:00:15]} Kc5 {[%emt 0:00:30]} 94. Kc2 {[%emt 0:00:09]} Kd6 {[%emt 0:00:30]} 95. Rd1+ {[%emt 0:00:30]} Ke7 {[%emt 0:00:30]} 96. Re1+ {[%emt 0:00:00]} Kd7 {[%emt 0:00:30]} 97. Re4 {[%emt 0:00:00]} Kc7 {[%emt 0:00:30]} 98. Kb1 {[%emt 0:00:13]} Kd7 {[%emt 0:00:30]} 99. Re1 {[%emt 0:00:07]} Kc7 {[%emt 0:00:00]} 100. Re6 {[%emt 0:00:51]} Bd4 {[%emt 0:00:00]} 101. Re7+ {[%emt 0:00:00]} Kd6 {[%emt 0:01:30]} 102. Re1 {[%emt 0:00:06]} Kc7 {[%emt 0:00:00]} 103. Kc2 {[%emt 0:00:10]} Bf6 {[%emt 0:00:00]} 104. Rf1 {[%emt 0:00:00]} Be5 {[%emt 0:00:30]} 105. Kd3 {[%emt 0:00:00]} Kd6 {[%emt 0:00:30]} 106. Ke4 {[%emt 0:00:00]} Bc3 {[%emt 0:00:30]} 107. Kf5 {[%emt 0:00:47]} Ke7 {[%emt 0:01:30]} 108. Kg4 {[%emt 0:00:30]} Bf6 {[%emt 0:02:30]} 109. Re1+ {[%emt 0:00:00]} Kd7 {[%emt 0:00:00]} 110. Kh5 {[%emt 0:00:00]} Bc3 {[%emt 0:01:00]} 111. Rf1 {[%emt 0:00:08]} Be5 {[%emt 0:00:30]} 112. Kh6 {[%emt 0:06:53]} Ke7 {[%emt 0:00:30]} 113. Re1 $11 {[%emt 0:00:07]} Kf6 {[%emt 0:00:30]} 114. Rf1+ {[%emt 0:00:36]} Ke7 {[%emt 0:00:30]} 115. Ba2 {[%emt 0:00:04]} Kd6 {[%emt 0:01:30]} 116. Rd1+ {[%emt 0:00:01]} Ke7 {[%emt 0:00:30]} 117. Rf1 {[%emt 0:01:02]} Bf6 {[%emt 0:00:30]} 118. Rf5 {[%emt 0:00:47]} Bd4 {[%emt 0:01:30]} 0-1

[Event "TUR-ch Youth U17 2019"]
[Site "Belek"]
[Date "2019.01.24"]
[Round "7"]
[White "Sahin, Hayrun Nisa"]
[Black "Catal, Uktenur"]
[Result "1/2-1/2"]
[ECO "C10"]
[WhiteElo "1743"]
[BlackElo "1854"]
[Annotator "NA"]
[PlyCount "66"]
[EventDate "2019.01.20"]
[EventType "swiss"]
[EventCountry "TUR"]
[SourceTitle "playchess.com"]
[Source "ChessBase"]
[SourceQuality "1"]
[TimeControl "5400+30"]

1. e4 e6 {[%emt 0:00:30]} 2. d4 {[%emt 0:00:30]} d5 {[%emt 0:00:30]} 3. Nd2 {[%emt 0:00:30]} dxe4 {[%emt 0:00:30]} 4. Nxe4 {[%emt 0:00:30]} Nd7 {[%emt 0:00:30]} 5. Nf3 {[%emt 0:00:30]} Ngf6 {[%emt 0:00:00]} 6. Nxf6+ {[%emt 0:01:30]} Nxf6 {[%emt 0:00:00]} 7. Bd3 {[%emt 0:00:30]} c5 {[%emt 0:00:00]} 8. dxc5 {[%emt 0:00:30]} Bxc5 {[%emt 0:00:30]} 9. Bb5+ {[%emt 0:09:30]} Bd7 {[%emt 0:07:00]} 10. Bxd7+ {[%emt 0:01:30]} Qxd7 {[%emt 0:00:30]} 11. Qxd7+ {[%emt 0:02:30]} Nxd7 {[%emt 0:01:30]} 12. Be3 {[%emt 0:08:30]} Bxe3 {[%emt 0:02:30]} 13. fxe3 {[%emt 0:00:30]} Ke7 {[%emt 0:00:30]} 14. O-O-O {[%emt 0:10:30]} Rhd8 {[%emt 0:04:00]} 15. Rd4 {[%emt 0:20:30]} Nb6 $11 {[%emt 0:24:30]} 16. Rhd1 {[%emt 1:08:00]} f6 {[%emt 0:04:30]} 17. Rh4 {[%emt 0:10:30]} Rxd1+ {[%emt 0:06:30]} 18. Kxd1 {[%emt 0:00:30]} Rd8+ {[%emt 0:00:30]} 19. Ke2 {[%emt 0:00:30]} h6 {[%emt 0:00:30]} 20. Nd4 {[%emt 0:03:44]} Kf7 {[%emt 0:18:30]} 21. Nb5 {[%emt 0:02:10]} a6 {[%emt 0:00:30]} 22. Nc3 {[%emt 0:00:08]} Nd5 {[%emt 0:00:30]} 23. Nxd5 {[%emt 0:00:38]} Rxd5 {[%emt 0:00:30]} 24. Rb4 {[%emt 0:00:37]} b5 {[%emt 0:00:30]} 25. a4 {[%emt 0:02:25]} Ke7 {[%emt 0:06:30]} 26. c4 {[%emt 0:03:43]} bxc4 {[%emt 0:00:30]} 27. Rxc4 {[%emt 0:00:06]} Kd6 {[%emt 0:01:30]} 28. b4 {[%emt 0:00:11]} Rg5 {[%emt 0:01:30]} 29. Kf3 {[%emt 0:02:29]} Rf5+ {[%emt 0:00:30]} 30. Ke2 {[%emt 0:00:39]} Rg5 {[%emt 0:00:30]} 31. Kf3 {[%emt 0:03:48]} Rf5+ {[%emt 0:06:30]} 32. Ke2 {[%emt 0:00:05]} Rg5 {[%emt 0:19:55]} 33. Kf3 {[%emt 0:00:05]} Ke5 {[%emt 0:00:11]} 1/2-1/2

[Event "TUR-ch Youth U17 2019"]
[Site "Belek"]
[Date "2019.01.24"]
[Round "7"]
[White "Kargaci, Humeyra"]
[Black "Baspinar, Lara"]
[Result "1-0"]
[ECO "A11"]
[WhiteElo "1740"]
[BlackElo "1763"]
[Annotator "NA"]
[PlyCount "117"]
[EventDate "2019.01.20"]
[EventType "swiss"]
[EventCountry "TUR"]
[SourceTitle "playchess.com"]
[Source "ChessBase"]
[SourceQuality "1"]
[TimeControl "5400+30"]

1. c4 c6 2. Nf3 d5 3. Qc2 Nf6 4. g3 g6 5. d3 Bg7 6. Bg2 O-O 7. O-O Nbd7 8. e4 dxe4 9. dxe4 e5 10. b3 Re8 11. Bb2 Qc7 12. Nbd2 a5 13. a3 Bf8 14. Bc3 a4 15. b4 c5 {[%emt 0:46:30]} 16. b5 {[%emt 0:49:00]} Nb6 {[%emt 0:08:30]} 17. Ne1 {[%emt 0:04:30]} Be6 {[%emt 0:04:30]} 18. Bb2 {[%emt 0:00:30]} Rad8 {[%emt 0:08:30]} 19. Nef3 {[%emt 0:07:30]} Bc8 {[%emt 0:10:30]} 20. Rad1 {[%emt 0:02:30]} Bd6 {[%emt 0:04:02]} 21. Bc3 {[%emt 0:01:30]} Be6 {[%emt 0:03:27]} 22. Bb2 {[%emt 0:04:30]} h6 {[%emt 0:02:01]} 23. Rfe1 {[%emt 0:04:30]} Nfd7 {[%emt 0:04:04]} 24. Bf1 {[%emt 0:03:30]} Nf8 {[%emt 0:00:26]} 25. Qc3 {[%emt 0:02:30]} f6 {[%emt 0:01:44]} 26. h3 {[%emt 0:04:36]} Qf7 {[%emt 0:00:58]} 27. Rc1 {[%emt 0:02:11]} Nh7 {[%emt 0:00:41]} 28. Kh2 {[%emt 0:01:12]} Kg7 {[%emt 0:01:48]} 29. Qe3 {[%emt 0:01:02]} Ng5 {[%emt 0:02:01]} 30. h4 {[%emt 0:04:11]} Nxf3+ {[%emt 0:00:18]} 31. Qxf3 {[%emt 0:01:24]} Bc7 {[%emt 0:00:26]} 32. Bd3 {[%emt 0:02:27]} h5 {[%emt 0:00:59]} 33. Qe2 {[%emt 0:01:21]} Qd7 {[%emt 0:00:13]} 34. Rc3 {[%emt 0:00:14]} Nc8 {[%emt 0:00:10]} 35. Nf1 {[%emt 0:00:07]} Ba5 {[%emt 0:00:08]} 36. Bc2 {[%emt 0:00:59]} Bxc3 {[%emt 0:00:41]} 37. Bxc3 {[%emt 0:00:30]} Qf7 {[%emt 0:00:30]} 38. Ne3 {[%emt 0:00:30]} Nd6 {[%emt 0:00:30]} 39. Nd5 {[%emt 0:00:30]} Bxd5 {[%emt 0:01:01]} 40. cxd5 {[%emt 0:00:58]} b6 {[%emt 0:01:07]} 41. Bd3 {[%emt 0:01:31]} Rc8 {[%emt 0:00:12]} 42. Rb1 {[%emt 0:00:35]} Re7 {[%emt 0:01:17]} 43. Bc2 {[%emt 0:01:13]} Ra7 {[%emt 0:00:30]} 44. f4 {[%emt 0:00:30]} Re8 {[%emt 0:00:30]} 45. Rf1 {[%emt 0:00:30]} Qe7 {[%emt 0:00:41]} 46. g4 {[%emt 0:02:22]} hxg4 {[%emt 0:00:30]} 47. Qxg4 {[%emt 0:00:30]} Rg8 {[%emt 0:01:58]} 48. Qg3 {[%emt 0:00:46]} Ne8 {[%emt 0:00:42]} 49. fxe5 {[%emt 0:00:30]} fxe5 {[%emt 0:01:12]} 50. Bxe5+ {[%emt 0:01:00]} Kh7 {[%emt 0:00:30]} 51. Bc3 {[%emt 0:00:30]} Ng7 {[%emt 0:00:30]} 52. e5 {[%emt 0:00:30]} Nf5 {[%emt 0:00:00]} 53. Rxf5 {[%emt 0:00:57]} gxf5 {[%emt 0:00:11]} 54. Bxf5+ {[%emt 0:00:30]} Kh8 {[%emt 0:00:30]} 55. e6+ {[%emt 0:00:30]} Rg7 {[%emt 0:00:30]} 56. Qxg7+ {[%emt 0:00:30]} Qxg7 {[%emt 0:00:30]} 57. Bxg7+ {[%emt 0:00:30]} Kxg7 {[%emt 0:00:00]} 58. d6 {[%emt 0:00:00]} Kf6 {[%emt 0:00:00]} 59. e7 {[%emt 0:00:00]} 1-0

[Event "TUR-ch Youth U17 2019"]
[Site "Belek"]
[Date "2019.01.24"]
[Round "7"]
[White "Esti, Kubra Selenay"]
[Black "Sen, Irem"]
[Result "1/2-1/2"]
[ECO "B15"]
[WhiteElo "1662"]
[BlackElo "1765"]
[Annotator "NA"]
[PlyCount "105"]
[EventDate "2019.01.20"]
[EventType "swiss"]
[EventCountry "TUR"]
[SourceTitle "playchess.com"]
[Source "ChessBase"]
[SourceQuality "1"]
[TimeControl "5400+30"]

1. e4 g6 2. d4 Bg7 3. Nc3 c6 4. Be3 d5 5. Qd2 dxe4 6. Nxe4 Nd7 7. Ne2 Ngf6 8. N2c3 O-O 9. Be2 Nd5 10. Bh6 N7f6 {[%emt 0:43:00]} 11. O-O-O {[%emt 0:55:30]} Bf5 {[%emt 0:22:30]} 12. f3 {[%emt 0:11:30]} Qa5 {[%emt 0:12:29]} 13. Bxg7 {[%emt 0:15:08]} Kxg7 {[%emt 0:00:20]} 14. Kb1 {[%emt 0:04:33]} Bxe4 {[%emt 0:11:26]} 15. Nxe4 {[%emt 0:00:59]} Qxd2 {[%emt 0:00:10]} 16. Rxd2 {[%emt 0:00:47]} b5 {[%emt 0:01:47]} 17. Nc5 {[%emt 0:05:15]} Ne3 {[%emt 0:02:01]} 18. Bd3 {[%emt 0:02:03]} h5 {[%emt 0:01:19]} 19. Re1 {[%emt 0:01:21]} Ned5 {[%emt 0:01:19]} 20. Be4 {[%emt 0:01:06]} e6 {[%emt 0:01:45]} 21. Bxd5 {[%emt 0:00:50]} cxd5 {[%emt 0:00:10]} 22. Rde2 {[%emt 0:00:50]} Rfc8 {[%emt 0:00:33]} 23. Re3 {[%emt 0:00:37]} Ne8 {[%emt 0:00:41]} 24. a3 {[%emt 0:00:43]} Nd6 {[%emt 0:00:11]} 25. c3 {[%emt 0:00:38]} Nc4 {[%emt 0:00:23]} 26. R3e2 {[%emt 0:00:22]} a5 {[%emt 0:00:19]} 27. Nd3 {[%emt 0:00:33]} Ra7 {[%emt 0:01:06]} 28. Ka2 {[%emt 0:00:25]} Rb8 {[%emt 0:01:23]} 29. b3 {[%emt 0:00:30]} Nd6 {[%emt 0:00:00]} 30. Ne5 {[%emt 0:00:31]} Rc7 {[%emt 0:00:21]} 31. Kb2 {[%emt 0:00:31]} Rbc8 {[%emt 0:00:11]} 32. Rc1 {[%emt 0:00:40]} a4 {[%emt 0:00:36]} 33. b4 {[%emt 0:00:27]} h4 {[%emt 0:01:09]} 34. Nd3 {[%emt 0:00:37]} Nc4+ {[%emt 0:00:57]} 35. Ka2 {[%emt 0:00:43]} Nd6 {[%emt 0:00:30]} 36. Nc5 {[%emt 0:00:30]} Nf5 {[%emt 0:00:30]} 37. Rce1 {[%emt 0:00:30]} Rc6 {[%emt 0:00:30]} 38. Kb2 {[%emt 0:00:30]} Rh8 {[%emt 0:00:30]} 39. Rg1 {[%emt 0:00:30]} Rcc8 {[%emt 0:00:30]} 40. Kc2 {[%emt 0:00:08]} Rh5 {[%emt 0:00:26]} 41. Kb2 {[%emt 0:00:30]} Rch8 {[%emt 0:00:30]} 42. Na6 {[%emt 0:00:30]} Nd6 {[%emt 0:00:30]} 43. Nc5 {[%emt 0:00:30]} Rf5 {[%emt 0:00:19]} 44. Rf1 {[%emt 0:00:17]} Nc4+ {[%emt 0:00:32]} 45. Ka2 {[%emt 0:00:47]} g5 {[%emt 0:00:30]} 46. Nd3 {[%emt 0:00:30]} Nb6 {[%emt 0:00:30]} 47. Kb2 {[%emt 0:00:33]} Nc8 {[%emt 0:00:40]} 48. Ka2 {[%emt 0:00:30]} Ne7 {[%emt 0:00:30]} 49. Ref2 {[%emt 0:00:30]} Ng6 {[%emt 0:00:30]} 50. Re1 {[%emt 0:00:24]} Rf6 {[%emt 0:00:13]} 51. Kb2 {[%emt 0:00:30]} Rc8 {[%emt 0:00:30]} 52. Ree2 {[%emt 0:00:30]} Kh6 {[%emt 0:00:48]} 53. Re1 {[%emt 0:00:13]} 1/2-1/2